Cogmind - Beta 9.4 @@@ ROGUE MODE // 2020.04.10 @ 23:19:17 Player: Dhoby_Ghaut Result: Destroyed by S-43 Plague with Heavy Machine Gun Performance ------------- Evolutions (9) 4500 Regions Visited (18) 3600 Robots Destroyed (116) 580 Value Destroyed (4101) 4101 Prototype IDs (31) 620 Alien Tech Used (2) 400 Bonus (1586) 1586 TOTAL SCORE: 15387 Bonus ------- High Alert Combat Kills 141 Follower Combat Kills 528 Entered Garrisons 200 Used RIF Installer 500 Met Zhirov 300 Friendly Fire -83 Cogmind --------- Core Integrity 0/1600 Matter 300/300 Energy 99/100 System Corruption 10% Temperature Cool (0) Movement Core (50) Location -1/Access Parts ------- > --- POWER (2) -------- (None) > --- PROPULSION (5) --- (None) > --- UTILITY (15) ----- Advanced Terrain Scan Processor Advanced Terrain Scan Processor Advanced Targeting Computer > --- WEAPON (3) ------- (None) > --- INVENTORY (4) ---- Medium Storage Unit Advanced Energy Well (749) Enhanced Nova Cannon Great Axe Peak State ------------ > --- POWER ------------ Quantum Reactor Improved Quantum Reactor > --- PROPULSION ------- Improved Antigrav System Improved Antigrav System Improved Gyrokinetic Inverter Combat Antigrav System Combat Linear Gravjet > --- UTILITY ---------- Advanced Cryofiber Web Advanced Heat Sink Advanced Heat Sink Advanced Coolant Injector Large Storage Unit Improved Matter Compressor Experimental Optical Array Makeshift Terrain Scanner Advanced Terrain Scan Processor Advanced Terrain Scan Processor Advanced Targeting Computer Energy Filter Advanced Reaction Control System Improved Thermal Shield EM Shield > --- WEAPON ----------- Phase Gun Enhanced Quantum Rifle Enhanced Quantum Rifle > --- INVENTORY -------- Light Antimatter Reactor Light Particle Reactor Cooled Gravmag System Improved Antigrav System Medium Storage Unit Advanced Energy Well Transdimensional Reconstructor Enhanced Nova Cannon Micro-nuke Launcher Great Axe [Rating: 167] Favorites ----------- Power Neutrino Core Engine Heavy Ion Engine Power Core Neutrino Core Reactor Cold Fusion Reactor Propulsion Combat Gravmag System Wheel Wheel Hover Unit Combat Gravmag System Utility Large Storage Unit Device Advanced Cryofiber Web Storage Large Storage Unit Processor Advanced Targeting Computer Hackware Advanced Hacking Suite Protection Layered Medium Armor Plating Weapon Advanced Beam Cannon Energy Gun EM Pulse Gun Energy Cannon Advanced Beam Cannon Ballistic Gun KE Penetrator Launcher Enhanced Gamma Bomb Array Special Weapon Remote Datajack Impact Weapon Heavy Flail Slashing Weapon Chainsword Piercing Weapon Heavy Pick Build | -11 -10 -9 -9 -9 -9 -7 -6 -5 -5 -5 -4 -4 -4 -4 -3 -3 -2 -1 ------- Run | Scr Mat Mat Sto Gar Rec Fac Fac Fac Upp Upp Fac Upp Upp Zhi Pro Res Res Acc Slots Evolved 18 | . . 2 . . . 4 2 2 . . 2 . . . . 2 2 2 Power 1 | . . . . . . 1 . . . . . . . . . . . . Propulsion 3 | . . . . . . 1 . 1 . . . . . . . . . 1 Utility 13 | . . 2 . . . 2 1 1 . . 2 . . . . 2 2 1 Weapon 1 | . . . . . . . 1 . . . . . . . . . . . Parts Attached 229 | 6 11 12 1 4 . 9 62 27 11 1 12 2 3 10 5 10 9 34 Power 22 | 1 1 2 1 . . 1 5 2 1 . 1 . . 1 1 . 1 4 Engine 9 | 1 1 2 1 . . 1 2 . . . 1 . . . . . . . Core 5 | . . . . . . . 2 2 1 . . . . . . . . . Reactor 8 | . . . . . . . 1 . . . . . . 1 1 . 1 4 Propulsion 43 | 2 1 2 . 2 . 1 10 7 1 . 2 . . 2 2 1 3 7 Treads . | . . . . . . . . . . . . . . . . . . . Leg . | . . . . . . . . . . . . . . . . . . . Wheel 20 | 2 1 2 . 2 . 1 8 4 . . . . . . . . . . Hover 23 | . . . . . . . 2 3 1 . 2 . . 2 2 1 3 7 Flight . | . . . . . . . . . . . . . . . . . . . Utility 88 | 1 3 3 . . . 5 22 12 6 1 7 1 3 6 . 5 3 10 Device 40 | . . 2 . . . 1 9 6 3 . 5 . 2 . . 2 2 8 Storage 15 | 1 3 1 . . . 1 . 3 2 . . . . 2 . 1 . 1 Processor 10 | . . . . . . 1 1 2 1 . 1 . . . . 2 1 1 Hackware 4 | . . . . . . . 2 . . . . 1 . 1 . . . . Protection 19 | . . . . . . 2 10 1 . 1 1 . 1 3 . . . . Artifact . | . . . . . . . . . . . . . . . . . . . Weapon 76 | 2 6 5 . 2 . 2 25 6 3 . 2 1 . 1 2 4 2 13 Energy Gun 25 | . 6 1 . 1 . . 4 2 . . 2 . . 1 . 1 2 5 Energy Cannon 17 | . . 1 . 1 . 1 9 1 . . . . . . . 1 . 3 Ballistic Gun 12 | 2 . 3 . . . . 4 1 1 . . . . . 1 . . . Ballistic Cannon . | . . . . . . . . . . . . . . . . . . . Launcher 6 | . . . . . . . 2 1 1 . . . . . 1 . . 1 Special Weapon 2 | . . . . . . . 2 . . . . . . . . . . . Impact Weapon 1 | . . . . . . . . . . . . 1 . . . . . . Slashing Weapon 11 | . . . . . . 1 4 1 1 . . . . . . . . 4 Piercing Weapon 2 | . . . . . . . . . . . . . . . . 2 . . Special Melee Weapon . | . . . . . . . . . . . . . . . . . . . Unidentified Prototypes 13 | . . . . . . . 2 1 . . 1 . . 6 . . 2 1 Parts Lost 88 | . 1 3 . 1 . 1 36 . 13 . . . . . 3 1 . 29 Power 12 | . . . . . . . 5 . 2 . . . . . 1 . . 4 Propulsion 24 | . . 2 . 1 . . 9 . 3 . . . . . 2 . . 7 Utility 33 | . . . . . . 1 12 . 5 . . . . . . 1 . 14 Weapon 19 | . 1 1 . . . . 10 . 3 . . . . . . . . 4 Highest Loss Streak 25 | . 1 2 . 1 . 1 12 . 6 . . . . . 3 1 . 25 Average Slot Usage (%) 91 | . 93 97 100 99 100 100 84 75 90 51 83 94 100 100 99 99 88 90 Engine 4 | . 13 11 11 11 11 15 3 . . . . 5 5 3 . . . . Core 3 | . . . . . . . 2 9 9 5 5 5 5 5 2 . . . Reactor 2 | . . . . . . . 3 . . . . . . 1 7 9 8 7 Wheel 10 | . 28 21 22 21 22 23 13 7 . . . . . . . . . . Hover 8 | . . . . . . . . 8 21 11 19 21 21 21 20 19 17 18 Device 11 | . . 11 11 11 11 7 8 14 15 . 12 10 10 10 10 18 19 25 Storage 18 | . 23 32 33 33 33 23 19 10 11 17 15 15 15 15 15 11 8 7 Processor 7 | . . . . . . 7 6 11 10 11 11 14 8 5 5 12 14 18 Hackware 1 | . . . . . . . . . . . . . 5 6 10 4 4 2 Protection 4 | . . . . . . 7 7 . 4 4 9 10 11 13 10 8 4 . Energy Gun 6 | . 25 13 . 1 . . 2 1 4 . 8 10 10 11 12 6 6 8 Energy Cannon 5 | . . 2 11 14 22 13 9 3 4 . . . . . . . . . Ballistic Gun 1 | . 1 3 11 5 . . 1 . 2 . . . . . . 4 . . Naked Turns . | . . . . . . . . . . . . . . . . . . . Heaviest Build 93 | 12 41 62 65 66 66 78 92 89 84 39 64 67 68 78 76 77 70 93 Greatest Support 113 | 26 26 26 20 22 22 32 34 89 89 50 84 84 84 84 84 76 68 113 Greatest Overweight (x) 23 | . 1 5 3 6 2 2 23 7 3 . . . . . 1 1 1 5 Average Overweight (x) 1 | . . 2 3 2 2 2 2 2 . . . . . . . . . . Largest Inventory Capacity 22 | 6 16 22 22 22 22 22 22 14 14 8 8 8 8 8 8 8 8 10 Average Capacity 15 | 5 10 21 22 22 22 22 21 12 13 8 8 8 8 8 8 8 8 8 Most Carried 22 | 2 16 22 22 22 22 22 22 14 14 6 8 7 8 8 8 8 8 10 Average Carried 13 | . 8 17 21 21 21 21 18 7 13 5 6 7 7 7 7 7 7 7 Final Capacity 22 | 6 16 22 22 22 22 22 4 14 8 8 8 8 8 8 8 8 8 4 Final Carried 22 | 2 16 22 21 22 22 21 4 14 6 5 7 7 8 8 8 8 8 4 Class Distribution -------------------- 34% | Mutant 32% | Hauler-Mutant 9% | Scout 4% | Hauler-Tank 4% | Scavenger-Mutant 3% | Hauler-Gunner Dominant Class ---------------- Mutant | -10/Materials Hauler-Mutant | -9/Materials Hauler-Mutant | -9/Storage Hauler-Mutant | -9/Garrison Hauler-Mutant | -9/Recycling Hauler-Mutant | -7/Factory Hauler-Mutant | -6/Factory Mutant | -5/Factory Mutant | -5/Upper Caves Mutant | -5/Upper Caves Mutant | -4/Factory Mutant | -4/Upper Caves Mutant | -4/Upper Caves Derelict-Mutant | -4/Zhirov Hacker-Tank | -3/Proximity Caves Scout | -3/Research Scout | -2/Research Scout | -1/Access Resources | -11 -10 -9 -9 -9 -9 -7 -6 -5 -5 -5 -4 -4 -4 -4 -3 -3 -2 -1 ----------- Run | Scr Mat Mat Sto Gar Rec Fac Fac Fac Upp Upp Fac Upp Upp Zhi Pro Res Res Acc Matter Collected 3169 | 249 81 177 . 135 . 85 639 444 279 . 150 12 28 220 150 . . 520 Remotely . | . . . . . . . . . . . . . . . . . . . Salvage Created 5350 | . 738 613 46 359 107 502 1160 456 195 . 174 . . . 320 . . 680 Parts 265 | . 40 31 3 12 4 24 66 25 8 . 3 . . . 19 . . 30 Haulers Intercepted 4 | . 2 2 . . . . . . . . . . . . . . . . Recyclers Shooed 5 | . 1 . . . 1 2 1 . . . . . . . . . . . Parts Field Recycled . | . . . . . . . . . . . . . . . . . . . Retrieved Matter . | . . . . . . . . . . . . . . . . . . . Parts Self-Destructed 6 | . . . . . . . . . 3 . . . . . 3 . . . Prevented 13 | . . . . . . . . . 5 . . . . . 8 . . . Kills | -11 -10 -9 -9 -9 -9 -7 -6 -5 -5 -5 -4 -4 -4 -4 -3 -3 -2 -1 ------- Run | Scr Mat Mat Sto Gar Rec Fac Fac Fac Upp Upp Fac Upp Upp Zhi Pro Res Res Acc Combat Hostiles Destroyed 70 | . 10 10 1 4 1 4 17 2 3 . . . . . 8 . . 10 Guns 31 | . 9 9 1 1 . . 1 2 . . . . . . 1 . . 7 Cannons 20 | . . 1 . 3 1 4 9 . 2 . . . . . . . . . AOE 12 | . 1 . . . . . 4 . 1 . . . . . 6 . . . Classes Destroyed 14 | . 7 1 . . 1 1 4 . . . . . . . . . . . Worker 14 | . 4 2 . . . 2 2 2 . . 1 . . . . . . 1 Builder 7 | . . . . . . . 5 2 . . . . . . . . . . Tunneler 4 | . 1 . . . . 1 1 1 . . . . . . . . . . Hauler 4 | . 2 2 . . . . . . . . . . . . . . . . Recycler 11 | . 3 1 . . 1 3 1 1 . . 1 . . . . . . . Operator 1 | . . . . . . . 1 . . . . . . . . . . . Drone 1 | . . . . . 1 . . . . . . . . . . . . . Watcher 5 | . 3 . . . . 1 . 1 . . . . . . . . . . Swarmer 18 | . 6 4 . . . . . . . . . . . . 8 . . . Grunt 23 | . 4 4 1 4 . 3 6 . 1 . . . . . . . . . Duelist 1 | . . . . . . . 1 . . . . . . . . . . . Sentry 8 | . . 2 . . . . 3 2 . . . . . . . . . 1 Hunter 5 | . . . . . . 1 4 . . . . . . . . . . . Programmer 14 | . . . . . . . 3 . 2 . . . . . . . . 9 Best Kill Streak 6 | . 5 5 1 2 1 5 6 1 2 . 1 . . . 5 . . 4 Combat Bots Only 5 | . 4 4 1 2 1 4 5 1 2 . . . . . 5 . . 3 Max Kills in Single Turn 3 | . 3 2 1 1 1 1 3 1 1 . 1 . . . 2 . . 1 Gunslinging . | . . . . . . . . . . . . . . . . . . . Exploded 2 | . 1 . . . . . 1 . 1 . . . . . 2 . . . Melee . | . . . . . . . . . . . . . . . . . . . Uniques/NPCs Destroyed . | . . . . . . . . . . . . . . . . . . . Combat | -11 -10 -9 -9 -9 -9 -7 -6 -5 -5 -5 -4 -4 -4 -4 -3 -3 -2 -1 -------- Run | Scr Mat Mat Sto Gar Rec Fac Fac Fac Upp Upp Fac Upp Upp Zhi Pro Res Res Acc Damage Taken 13924 | . 285 359 48 190 22 316 4519 274 2039 . . 385 246 . 574 340 . 4327 Core 3250 | . 77 68 . 38 . 47 650 91 525 . . 61 17 . 42 31 . 1603 Absorbed by Shields 202 | . . . . 15 . . . 63 . . . . . . . 124 . . Core Remaining (%) 75 | 100 69 . . . 73 93 23 . . 38 . . . . 89 97 100 . Volleys Fired 378 | . 53 38 2 44 15 23 104 32 10 . 4 1 2 . 9 2 . 39 Largest 3 | . 2 2 2 2 2 2 3 3 3 . 2 1 2 . 3 3 . 3 Hottest 301 | . 80 96 91 136 136 136 204 211 211 . 151 81 151 . 224 194 . 301 Shots Fired 737 | . 105 72 4 65 30 46 203 48 26 . 5 1 4 . 15 5 . 108 Gun 433 | . 105 69 2 39 . . 59 25 16 . 5 1 4 . 8 5 . 95 Cannon 279 | . . 3 2 26 30 46 130 23 8 . . . . . . . . 11 Launcher 20 | . . . . . . . 9 . 2 . . . . . 7 . . 2 Special 5 | . . . . . . . 5 . . . . . . . . . . . Kinetic 75 | . . 13 2 18 . . 19 11 8 . . . . . 2 2 . . Thermal 432 | . . 24 2 26 30 46 136 37 16 . 1 1 2 . 3 2 . 106 Explosive 11 | . . . . . . . 9 . . . . . . . . . . 2 Electromagnetic 214 | . 105 35 . 21 . . 34 . 2 . 4 . 2 . 10 1 . . Robot Hit Streak 17 | . 7 10 1 17 2 6 12 7 4 . 5 . 1 . 5 2 . 12 Robot Miss Streak 26 | . 3 6 1 1 26 5 8 5 2 . . . 1 . 3 1 . 2 Penetration Max . | . . . . . . . . . . . . . . . . . . . Secondary Targets 6 | . 2 1 . . . . . . . . . . . . . . . 3 Max Gunslinging Chain 1 | . 1 1 . . . . . . . . . . . . . . . 1 Shots Hit Robots 451 | . 60 47 2 44 2 23 127 32 15 . 5 . 2 . 4 11 . 77 Core Hits 217 | . 31 21 1 16 2 14 63 13 11 . 3 . . . 21 1 . 20 Critical Hits 21 | . . . . 2 2 5 8 3 1 . . . . . . . . . Critical Kills 6 | . . . . . . 4 1 1 . . . . . . . . . . Critical Parts Destroyed 13 | . . . . 2 2 1 6 1 1 . . . . . . . . . Melee Attacks 70 | . . . . . . 1 15 4 8 . . . . . . 11 1 30 Impact . | . . . . . . . . . . . . . . . . . . . Slashing 46 | . . . . . . 1 15 4 8 . . . . . . . . 18 Piercing 24 | . . . . . . . . . . . . . . . . 11 1 12 Sneak Attacks 3 | . . . . . . . . 2 . . . . . . . . . 1 Combat Hostiles . | . . . . . . . . . . . . . . . . . . . Follow-up Attacks . | . . . . . . . . . . . . . . . . . . . Damage Inflicted 12532 | . 1105 718 18 877 104 504 3451 1049 747 . 157 . . . 641 290 . 2871 Guns 5952 | . 843 597 18 434 . . 745 443 199 . 157 . . . 55 53 . 2408 Cannons 3692 | . . 65 . 266 104 504 2003 377 243 . . . . . . . . 130 Explosions 2323 | . 262 56 . 177 . . 703 . 305 . . . . . 586 . . 234 Melee 557 | . . . . . . . . 229 . . . . . . . 237 . 91 Ramming 8 | . . . . . . . . . . . . . . . . . . 8 Kinetic 773 | . . 73 18 171 . . 197 178 111 . . . . . . 25 . . Thermal 7251 | . 262 293 . 443 104 504 2014 642 331 . 24 . . . 68 28 . 2538 Explosive 776 | . . . . . . . 542 . . . . . . . . . . 234 Electromagnetic 3167 | . 843 352 . 263 . . 698 . 305 . 133 . . . 573 . . . Impact . | . . . . . . . . . . . . . . . . . . . Slashing 320 | . . . . . . . . 229 . . . . . . . . . 91 Piercing 237 | . . . . . . . . . . . . . . . . 237 . . Highest Corruption 10 | . . . . . . . 8 . . . . . . . . 1 . 10 Average Corruption 2 | . . . . . . . 1 . . . . . . . . 1 . 4 Corruption Purged . | . . . . . . . . . . . . . . . . . . . Effects 41 | . . . . . . . 20 . . . . . . . . . . 21 Message Errors 9 | . . . . . . . 6 . . . . . . . . . . 3 Matter Fused 6 | . . . . . . . 1 . . . . . . . . . . 5 Heat Flow Errors 4 | . . . . . . . 3 . . . . . . . . . . 1 Energy Discharges 6 | . . . . . . . 4 . . . . . . . . . . 2 Parts Rejected 1 | . . . . . . . . . . . . . . . . . . 1 Data Loss (minor) 4 | . . . . . . . 3 . . . . . . . . . . 1 Misdirections 1 | . . . . . . . . . . . . . . . . . . 1 Targeting Errors 8 | . . . . . . . 3 . . . . . . . . . . 5 Weapon Failures 2 | . . . . . . . . . . . . . . . . . . 2 Overload Shots . | . . . . . . . . . . . . . . . . . . . Overflow Damage 337 | . . 18 . 13 . 16 125 67 28 . . . . . 9 . . 61 Projectiles 244 | . . 8 . . . 16 125 67 28 . . . . . . . . . Explosions 32 | . . 10 . 13 . . . . . . . . . . 9 . . . Melee 61 | . . . . . . . . . . . . . . . . . . 61 Knockbacks . | . . . . . . . . . . . . . . . . . . . Impact . | . . . . . . . . . . . . . . . . . . . Kinetic . | . . . . . . . . . . . . . . . . . . . Secondary . | . . . . . . . . . . . . . . . . . . . Self-Inflicted Damage 136 | . 4 37 . 38 . . . . 50 . . . . . 4 . . 3 Shots 10 | . 1 1 . 1 . . . . 6 . . . . . 1 . . . Rammed 2 | . . . . . . . . . . . . . . . . . . 2 Targets Rammed 2 | . . . . . . . . . . . . . . . . . . 2 Kicked . | . . . . . . . . . . . . . . . . . . . Crushed . | . . . . . . . . . . . . . . . . . . . Highest Temperature 483 | . 216 11 . 3 15 185 269 356 483 . . 309 394 117 22 . . 198 Average Temperature 111 | . 63 4 . 2 4 51 107 126 254 . . 176 139 60 22 . . 86 Received Heat Transfer 1415 | . 54 72 21 77 9 99 621 48 279 . . 18 30 . . 60 . 27 Effects 17 | . . . . . . . . 4 5 . . 3 5 . . . . . Shutdowns 4 | . . . . . . . . 1 2 . . . 1 . . . . . Energy Bleed 3 | . . . . . . . . . 2 . . 1 . . . . . . Interference 9 | . . . . . . . . 3 . . . 2 4 . . . . . Damage (minor) 1 | . . . . . . . . . 1 . . . . . . . . . Siege Activations . | . . . . . . . . . . . . . . . . . . . Robots Corrupted 6 | . . . . 2 . . 3 . . . . . . . 1 . . . Combat Hostiles 4 | . . . . . . . 3 . . . . . . . 1 . . . Parts Fried 24 | . 6 1 . . . . 4 . 1 . 4 . . . 8 . . . Impact Corruptions . | . . . . . . . . . . . . . . . . . . . Robots Melted 3 | . . . . . . . . . . . . . . . . . . 3 Combat Hostiles 3 | . . . . . . . . . . . . . . . . . . 3 Parts Melted 47 | . . . . . . 2 8 . 5 . . . . . . . . 32 Heat Transferred 10110 | . 300 655 . 781 185 888 3071 957 411 . 37 . . . 87 37 . 2701 Parts Sabotaged . | . . . . . . . . . . . . . . . . . . . Parts Stolen . | . . . . . . . . . . . . . . . . . . . Parts Stripped . | . . . . . . . . . . . . . . . . . . . Power Chain Reactions 9 | . 5 1 . 2 . . . . . . . . . . 1 . . . Missiles Intercepted . | . . . . . . . . . . . . . . . . . . . Alert | -11 -10 -9 -9 -9 -9 -7 -6 -5 -5 -5 -4 -4 -4 -4 -3 -3 -2 -1 ------- Run | Scr Mat Mat Sto Gar Rec Fac Fac Fac Upp Upp Fac Upp Upp Zhi Pro Res Res Acc Peak Influence 995 | . 323 392 159 771 346 995 594 203 . . 38 . . . . 180 119 277 Average Influence 311 | . 149 217 105 601 213 923 367 113 . . 19 . . . . 140 102 177 Maximum Alert Level 3 | . 1 1 . 3 1 3 2 1 . . . . . . . . . 1 Low Security (%) 38 | 100 77 49 100 6 19 . . 94 . . 100 . . . . 100 100 50 Level 1 39 | . 22 50 . 11 80 . 80 5 . . . . . . . . . 49 Level 2 12 | . . . . 54 . 7 19 . . . . . . . . . . . Level 3 8 | . . . . 27 . 92 . . . . . . . . . . . . Level 4 . | . . . . . . . . . . . . . . . . . . . Level 5 . | . . . . . . . . . . . . . . . . . . . High Security . | . . . . . . . . . . . . . . . . . . . Max Security . | . . . . . . . . . . . . . . . . . . . Squads Dispatched 23 | . 1 1 2 . . 3 7 1 . . 2 . . . . . 1 5 Investigation 5 | . . 1 . . . 1 1 . . . 1 . . . . . 1 . Extermination 6 | . . . . . . . 3 . . . 1 . . . . . . 2 Reinforcement 9 | . 1 . . . . 1 3 1 . . . . . . . . . 3 Assault 3 | . . . 2 . . 1 . . . . . . . . . . . . Garrison . | . . . . . . . . . . . . . . . . . . . Intercept . | . . . . . . . . . . . . . . . . . . . Construction Impeded 1 | . . . . . . . 1 . . . . . . . . . . . Haulers Reinforced . | . . . . . . . . . . . . . . . . . . . Stealth | -11 -10 -9 -9 -9 -9 -7 -6 -5 -5 -5 -4 -4 -4 -4 -3 -3 -2 -1 --------- Run | Scr Mat Mat Sto Gar Rec Fac Fac Fac Upp Upp Fac Upp Upp Zhi Pro Res Res Acc Distress Signals 7 | . 1 . . . . . 3 . . . . . . . . 1 . 2 Communications Jammed 4 | . . . . . . . 4 . . . . . . . . . . . Distress Signals 4 | . . . . . . . 4 . . . . . . . . . . . Times Spotted 210 | . 19 13 2 19 12 7 39 10 23 . . 3 3 . 10 6 2 42 Peak Tracking Total 14 | . 4 5 1 4 3 4 4 2 13 . 2 2 3 . 7 3 2 14 Tactical Retreats 26 | . 3 1 . 1 . . 6 . 7 . 1 2 . . 1 2 . 2 Traps | -11 -10 -9 -9 -9 -9 -7 -6 -5 -5 -5 -4 -4 -4 -4 -3 -3 -2 -1 ------- Run | Scr Mat Mat Sto Gar Rec Fac Fac Fac Upp Upp Fac Upp Upp Zhi Pro Res Res Acc Traps Triggered 11 | . 1 1 . 5 . . . 1 . . 1 . . . . 1 1 . Indirectly . | . . . . . . . . . . . . . . . . . . . Trap Hack Attempts . | . . . . . . . . . . . . . . . . . . . Triggered . | . . . . . . . . . . . . . . . . . . . Disarmed . | . . . . . . . . . . . . . . . . . . . Reprogrammed . | . . . . . . . . . . . . . . . . . . . Reused . | . . . . . . . . . . . . . . . . . . . Traps Extracted . | . . . . . . . . . . . . . . . . . . . Installed . | . . . . . . . . . . . . . . . . . . . Triggered 2 | . . . . . . . . . . 1 . . . . 1 . . . Machines | -11 -10 -9 -9 -9 -9 -7 -6 -5 -5 -5 -4 -4 -4 -4 -3 -3 -2 -1 ---------- Run | Scr Mat Mat Sto Gar Rec Fac Fac Fac Upp Upp Fac Upp Upp Zhi Pro Res Res Acc Machines Disabled 15 | . 1 2 . 2 . . 9 . . . . . . . . . . 1 Max in Single Turn 5 | . 1 1 . 1 . . 5 . . . . . . . . . . 1 Garrison Access 1 | . . . . . . 1 . . . . . . . . . . . . Garrison Relay 2 | . . . . 2 . . . . . . . . . . . . . . Machines Sabotaged . | . . . . . . . . . . . . . . . . . . . Garrisons Compromised 1 | . . . . . . 1 . . . . . . . . . . . . Overloaded Fab Kills . | . . . . . . . . . . . . . . . . . . . Fab Network Shutdowns . | . . . . . . . . . . . . . . . . . . . Hacking | -11 -10 -9 -9 -9 -9 -7 -6 -5 -5 -5 -4 -4 -4 -4 -3 -3 -2 -1 --------- Run | Scr Mat Mat Sto Gar Rec Fac Fac Fac Upp Upp Fac Upp Upp Zhi Pro Res Res Acc Machines Accessed 39 | . 8 2 3 . 4 2 5 1 . . 1 . 1 5 . 4 2 1 Terminals 28 | . 7 2 2 . 4 1 5 . . . 1 . . . . 3 2 1 Fabricators 2 | . . . . . . . . 1 . . . . . . . 1 . . Repair Stations 1 | . 1 . . . . . . . . . . . . . . . . . Recycling Units . | . . . . . . . . . . . . . . . . . . . Scanalyzers . | . . . . . . . . . . . . . . . . . . . Garrison Access 2 | . . . 1 . . 1 . . . . . . . . . . . . Total Hacks 107 | . 31 6 7 . 11 3 10 3 . . 3 . 1 18 . 10 3 1 Successful 67 | . 19 4 3 . 5 2 4 1 . . 3 . 1 18 . 7 . . Failed 40 | . 12 2 4 . 6 1 6 2 . . . . . . . 3 3 1 Catastrophic 4 | . 1 . . . 1 . 1 . . . . . . . . . . 1 Database Lockouts . | . . . . . . . . . . . . . . . . . . . Manual 40 | . 14 3 4 . 4 . 4 2 . . 2 . . . . 6 . 1 Terminals 78 | . 28 6 5 . 11 2 10 . . . 3 . . . . 9 3 1 Fabricators 4 | . . . . . . . . 3 . . . . . . . 1 . . Repair Stations 3 | . 3 . . . . . . . . . . . . . . . . . Recycling Units . | . . . . . . . . . . . . . . . . . . . Scanalyzers . | . . . . . . . . . . . . . . . . . . . Garrison Access 3 | . . . 2 . . 1 . . . . . . . . . . . . Terminal Hacks 47 | . 12 2 2 . 4 1 3 . . . 1 . 1 18 . 3 . . Record 6 | . . . . . . . . . . . . . . 6 . . . . Part Schematic 7 | . 1 . . . 1 . 1 . . . . . . 4 . . . . Robot Analysis 5 | . 1 . . . . . . . . . . . . 4 . . . . Prototype ID Bank 10 | . 4 . 1 . . . 1 . . . . . . 4 . . . . Open Door 1 | . . . . . . . . . . . . . 1 . . . . . Level Access Points 1 | . . . . . . . . . . . . . . . . 1 . . Emergency Access Points 1 | . . . . . . . . . . . . . . . . 1 . . Unreport Threat 4 | . . . . . 3 1 . . . . . . . . . . . . Locate Traps 9 | . 4 1 1 . . . 1 . . . 1 . . . . 1 . . Hauler Manifests 1 | . 1 . . . . . . . . . . . . . . . . . Registered Prototypes 1 | . 1 . . . . . . . . . . . . . . . . . Zone Layout 1 | . . 1 . . . . . . . . . . . . . . . . Fabricator Hacks 1 | . . . . . . . . 1 . . . . . . . . . . Build 1 | . . . . . . . . 1 . . . . . . . . . . Repair Station Hacks 2 | . 2 . . . . . . . . . . . . . . . . . Scan Component 1 | . 1 . . . . . . . . . . . . . . . . . Repair 1 | . 1 . . . . . . . . . . . . . . . . . Recycling Unit Hacks . | . . . . . . . . . . . . . . . . . . . Scanalyzer . | . . . . . . . . . . . . . . . . . . . Garrison Access Hacks 2 | . . . 1 . . 1 . . . . . . . . . . . . Unlock Access 1 | . . . 1 . . . . . . . . . . . . . . . Seal Access 1 | . . . . . . 1 . . . . . . . . . . . . Unauthorized Hacks 43 | . 12 5 3 . 3 . 4 2 . . 4 . . . . 9 . 1 Terminals 15 | . 5 2 . . 1 . 1 . . . 2 . . . . 4 . . Track 3 | . . . . . . . . . . . 1 . . . . 2 . . Botnet 10 | . 3 2 . . 1 . 1 . . . 1 . . . . 2 . . Disrupt 1 | . 1 . . . . . . . . . . . . . . . . . Operators 1 | . 1 . . . . . . . . . . . . . . . . . Fabricators . | . . . . . . . . . . . . . . . . . . . Repair Stations . | . . . . . . . . . . . . . . . . . . . Recycling Units . | . . . . . . . . . . . . . . . . . . . Scanalyzers . | . . . . . . . . . . . . . . . . . . . Garrison Access . | . . . . . . . . . . . . . . . . . . . Data Cores Recovered 1 | . . . . . . . 1 . . . . . . . . . . . Used . | . . . . . . . . . . . . . . . . . . . Hacking Detections 30 | . 7 2 2 . 4 1 5 1 . . 1 . . . . 4 2 1 Full Trace Events 1 | . . . . . . . 1 . . . . . . . . . . . Feedback Events . | . . . . . . . . . . . . . . . . . . . Feedback Blocked . | . . . . . . . . . . . . . . . . . . . Robot Schematics Acquired . | . . . . . . . . . . . . . . . . . . . Robots Built . | . . . . . . . . . . . . . . . . . . . Matter . | . . . . . . . . . . . . . . . . . . . Time . | . . . . . . . . . . . . . . . . . . . Total Robot Build Rating . | . . . . . . . . . . . . . . . . . . . Part Schematics Acquired 7 | . 1 . . . 1 . 1 . . . . . . 4 . . . . Parts Built 1 | . . . . . . . . 1 . . . . . . . . . . Matter 417 | . . . . . . . . 417 . . . . . . . . . . Time 222 | . . . . . . . . 222 . . . . . . . . . . Total Part Build Rating 9 | . . . . . . . . 9 . . . . . . . . . . Parts Repaired 1 | . 1 . . . . . . . . . . . . . . . . . Time 26 | . 26 . . . . . . . . . . . . . . . . . Parts Recycled . | . . . . . . . . . . . . . . . . . . . Recycled Matter . | . . . . . . . . . . . . . . . . . . . Retrieved Matter . | . . . . . . . . . . . . . . . . . . . Retrieved Components . | . . . . . . . . . . . . . . . . . . . Parts Scanalyzed . | . . . . . . . . . . . . . . . . . . . Part Schematics Acquired . | . . . . . . . . . . . . . . . . . . . Parts Damaged . | . . . . . . . . . . . . . . . . . . . Bothacking | -11 -10 -9 -9 -9 -9 -7 -6 -5 -5 -5 -4 -4 -4 -4 -3 -3 -2 -1 ------------ Run | Scr Mat Mat Sto Gar Rec Fac Fac Fac Upp Upp Fac Upp Upp Zhi Pro Res Res Acc Used RIF Installer 1 | . . . . 1 . . . . . . . . . . . . . . Robots Hacked 3 | . . . . . . . 3 . . . . . . . . . . . Non-combat . | . . . . . . . . . . . . . . . . . . . Combat 3 | . . . . . . . 3 . . . . . . . . . . . Robot Hacks Applied 3 | . . . . . . . 3 . . . . . . . . . . . disable_weapons 1 | . . . . . . . 1 . . . . . . . . . . . formatsys_high 2 | . . . . . . . 2 . . . . . . . . . . . Relay Couplers Released 7 | . . . . 7 . . . . . . . . . . . . . . Machine Destruction 7 | . . . . 7 . . . . . . . . . . . . . . Attached 2 | . . . . . . . 2 . . . . . . . . . . . Robots Rewired . | . . . . . . . . . . . . . . . . . . . Allies Hacked . | . . . . . . . . . . . . . . . . . . . Hacks Repelled . | . . . . . . . . . . . . . . . . . . . Allies | -11 -10 -9 -9 -9 -9 -7 -6 -5 -5 -5 -4 -4 -4 -4 -3 -3 -2 -1 -------- Run | Scr Mat Mat Sto Gar Rec Fac Fac Fac Upp Upp Fac Upp Upp Zhi Pro Res Res Acc Total Allies 4 | . . . 2 . . . 2 . . . . . . . . . . . Largest Group 2 | . . . 2 2 2 2 2 . . . . . . . . . . . Highest-Rated Group 62 | . . . 62 62 59 59 58 . . . . . . . . . . . Highest-Rated Ally 31 | . . . 31 31 31 31 29 . . . . . . . . . . . Total Orders 8 | . . . . . . . 4 1 1 . . . . . . . . 2 GOTO 1 | . . . . . . . 1 . . . . . . . . . . . EXPLORE 7 | . . . . . . . 3 1 1 . . . . . . . . 2 Ally Attacks 101 | . . . 1 44 32 20 4 . . . . . . . . . . . Total Damage 1460 | . . . 22 750 337 295 56 . . . . . . . . . . . Kills 30 | . . . 1 14 9 5 1 . . . . . . . . . . . Allies Corrupted . | . . . . . . . . . . . . . . . . . . . Allies Melted . | . . . . . . . . . . . . . . . . . . . Intel | -11 -10 -9 -9 -9 -9 -7 -6 -5 -5 -5 -4 -4 -4 -4 -3 -3 -2 -1 ------- Run | Scr Mat Mat Sto Gar Rec Fac Fac Fac Upp Upp Fac Upp Upp Zhi Pro Res Res Acc Robot Analysis Total 5 | . 1 . . . . . . . . . . . . 4 . . . . Derelict Logs Recovered 3 | . . . . . . . . . . . . 2 1 . . . . . Drone Launches 6 | . . . . . . . 2 2 . . . . . . . . . 2 Drone Recoveries . | . . . . . . . . . . . . . . . . . . . Exploration | -11 -10 -9 -9 -9 -9 -7 -6 -5 -5 -5 -4 -4 -4 -4 -3 -3 -2 -1 ------------- Run | Scr Mat Mat Sto Gar Rec Fac Fac Fac Upp Upp Fac Upp Upp Zhi Pro Res Res Acc Turns Passed 9891 | 46 719 488 82 907 342 437 2117 675 1337 51 274 323 336 193 189 295 182 898 Spaces Moved 7923 | 41 514 339 62 666 249 334 1003 445 854 66 310 429 451 202 287 409 253 1009 Core 272 | 5 . . . . . . 105 79 4 . . . . . . . . 79 Treads . | . . . . . . . . . . . . . . . . . . . Legs . | . . . . . . . . . . . . . . . . . . . Wheels 3289 | 36 514 339 62 666 249 334 875 214 . . . . . . . . . . Hover 4362 | . . . . . . . 23 152 850 66 310 429 451 202 287 409 253 930 Flight . | . . . . . . . . . . . . . . . . . . . Fastest Speed 40 | 50 90 100 110 105 105 103 50 50 63 76 60 60 60 60 50 40 40 44 Average Speed 83 | 87 94 103 110 108 105 103 146 91 70 76 61 60 60 60 55 54 59 47 Slowest Speed 1200 | 100 100 130 110 140 105 103 1200 290 200 76 76 60 60 60 111 102 105 300 Overloaded Moves . | . . . . . . . . . . . . . . . . . . . Propulsion Burnouts . | . . . . . . . . . . . . . . . . . . . Robots Hopped . | . . . . . . . . . . . . . . . . . . . Cave-ins Triggered . | . . . . . . . . . . . . . . . . . . . Teleports 1 | . . . . . . . . . . . . . . . . . . 1 Exploration Rate (%) 38 | 4 83 19 13 64 71 15 32 9 80 10 9 72 76 60 61 12 8 29 Regions Visited 18 Branch Regions 8 Pre-discovered Areas 4 | . . . . . . . . . . . . 1 . 3 . . . . Known Exits Taken 2 | . . . 1 . . . . . . . . . . . . 1 . . Unknown Exits Taken 15 | 1 1 1 . . 1 1 1 1 1 1 1 1 1 1 1 . 1 . Scrap Searched 6 | . . . . . . . . . 3 . . 2 1 . . . . . Spaces Dug 47 | . . . . . . 1 15 . 8 . . . . . . 1 1 21 Terrain Destroyed 178 | . 7 3 . . . 1 108 16 11 . . . . . 3 1 1 27 Melee 47 | . . . . . . 1 15 . 8 . . . . . . 1 1 21 Projectile 34 | . . . . . . . 10 16 3 . . . . . . . . 5 AOE 97 | . 7 3 . . . . 83 . . . . . . . 3 . . 1 Actions | -11 -10 -9 -9 -9 -9 -7 -6 -5 -5 -5 -4 -4 -4 -4 -3 -3 -2 -1 --------- Run | Scr Mat Mat Sto Gar Rec Fac Fac Fac Upp Upp Fac Upp Upp Zhi Pro Res Res Acc Total 10363 | 48 643 405 76 791 300 381 1446 657 1557 66 384 492 513 276 302 453 284 1289 Wait 1495 | . 32 1 4 19 35 . 232 122 674 . 53 60 51 45 . 11 10 146 Move 7906 | 40 513 338 62 665 248 333 1002 444 853 65 309 428 450 201 286 408 252 1009 Hop . | . . . . . . . . . . . . . . . . . . . Pick Up 109 | 2 23 11 3 11 1 8 13 12 . . 2 . 2 4 2 5 1 9 Fast Attach 89 | 6 5 1 . . . . 11 20 2 . 10 2 3 9 1 3 6 10 Attach 57 | . 1 6 . 1 . 5 21 3 3 1 2 . . 2 2 2 . 8 Detach 24 | . . . . . . . 1 7 1 . 3 1 2 3 . 1 1 4 Swap 85 | . 5 5 1 3 . 4 30 4 6 . . . . . 2 5 3 17 Drop 104 | . 11 5 4 9 1 6 15 8 . . 1 . 3 12 . 5 10 14 Fire 378 | . 53 38 2 44 15 23 104 32 10 . 4 1 2 . 9 2 . 39 Melee 70 | . . . . . . 1 15 4 8 . . . . . . 11 1 30 Ram 2 | . . . . . . . . . . . . . . . . . . 2 Kick . | . . . . . . . . . . . . . . . . . . . Crush . | . . . . . . . . . . . . . . . . . . . Escape Stasis 39 | . . . . 39 . . . . . . . . . . . . . . Rewire 2 | . . . . . . 1 1 . . . . . . . . . . . Trap . | . . . . . . . . . . . . . . . . . . . Miscellaneous 3 | . . . . . . . 1 1 . . . . . . . . . 1 Route ------- -11/Scrapyard -10/Materials (discovered 2 exits: *Mat / [*Min]) -9/Materials -9/Storage -9/Garrison (discovered 2 exits: *Rec x2) -9/Recycling -7/Factory -6/Factory (discovered 3 exits: *Fac x2 / [*Low]) -5/Factory -5/Upper Caves -5/Upper Caves -4/Factory -4/Upper Caves -4/Upper Caves (discovered 2 exits: *Res / *Zhi) -4/Zhirov -3/Proximity Caves -3/Research (discovered 3 exits: *Res x3) -2/Research -1/Access History --------- Turn | Location | Event 18 | -11/Scrapyard | Discovered new exit (range 15) 47 | -11/Scrapyard | Entered Materials 214 | -10/Materials | Repaired EM Pulse Gun 316 | -10/Materials | Build established: Mutant 659 | -10/Materials | Discovered new exit (range 6) 759 | -10/Materials | Discovered new exit (range 8) 766 | -10/Materials | Entered another Materials area 766 | -9/Materials | Evolved 2 slots: Utility x2 1079 | -9/Materials | Discovered new exit (range 6) 1103 | -9/Materials | Build established: Hauler-Mutant 1254 | -9/Materials | Entered Storage 1296 | -9/Storage | Met a pair of Derelict thieves 1332 | -9/Storage | Identified exit to Garrison 1336 | -9/Storage | Entered Garrison 1336 | -9/Garrison | Accompanied by 2 allies 1383 | -9/Garrison | Triggered checkpoint 1408 | -9/Garrison | Triggered checkpoint 1455 | -9/Garrison | Triggered checkpoint 1469 | -9/Garrison | Discovered new exit (range 14) 1524 | -9/Garrison | Triggered checkpoint 1555 | -9/Garrison | Triggered checkpoint 1661 | -9/Garrison | Discovered new exit (range 9) 1677 | -9/Garrison | Installed Relay Interface Framework 1992 | -9/Garrison | Triggered checkpoint 1996 | -9/Garrison | Garrison Relay disabled 2106 | -9/Garrison | Triggered checkpoint 2136 | -9/Garrison | Garrison Relay disabled 2243 | -9/Garrison | Entered Recycling 2243 | -9/Recycling | Accompanied by 2 allies 2276 | -9/Recycling | Spotter reported a threat 2279 | -9/Recycling | Spotter reported a threat 2282 | -9/Recycling | Spotter reported a threat 2300 | -9/Recycling | Spotter reported a threat 2338 | -9/Recycling | Spotter reported a threat 2338 | -9/Recycling | Spotter reported a threat 2362 | -9/Recycling | Spotter reported a threat 2377 | -9/Recycling | Spotter reported a threat 2467 | -9/Recycling | Spotter reported a threat 2473 | -9/Recycling | Spotter reported a threat 2486 | -9/Recycling | Spotter reported a threat 2486 | -9/Recycling | Spotter reported a threat 2520 | -9/Recycling | Spotter reported a threat 2537 | -9/Recycling | Discovered new exit (range 13) 2555 | -9/Recycling | Spotter reported a threat 2585 | -9/Recycling | Entered Factory 2585 | -7/Factory | Accompanied by 2 allies 2585 | -7/Factory | Evolved 4 slots: Power x1, Propulsion x1, Utility x2 2976 | -7/Factory | Discovered new exit (range 11) 2985 | -7/Factory | First assault squad dispatched 3022 | -7/Factory | Entered another Factory area 3022 | -6/Factory | Evolved 2 slots: Utility x1, Weapon x1 3417 | -6/Factory | Build established: Hauler-Tank 4031 | -6/Factory | Lost 9 parts (1p2n2u4w) 4097 | -6/Factory | Lost 4 parts (1p2n1w) 4300 | -6/Factory | Discovered new exit (range 9) 4406 | -6/Factory | Discovered new exit (range 19) 4575 | -6/Factory | Lost 12 parts (2p3n3u4w) 4680 | -6/Factory | Build established: Hauler-Mutant 4793 | -6/Factory | Core integrity fell below 50% 5129 | -6/Factory | Discovered new exit (range 20) 5139 | -6/Factory | Entered another Factory area 5139 | -5/Factory | Evolved 2 slots: Propulsion x1, Utility x1 5145 | -5/Factory | Lost 9 parts (1p1n6u1w) 5606 | -5/Factory | Fabricated Enh. Gamma Bomb Array (x1) 5768 | -5/Factory | Discovered new exit (range 25) 5814 | -5/Factory | Entered Upper Caves 5814 | -5/Upper Caves | Accompanied by 1 ally 5949 | -5/Upper Caves | Build established: Mutant 5976 | -5/Upper Caves | Spotted B-75 Beast 6963 | -5/Upper Caves | Lost 6 parts (2p1n3w) 7048 | -5/Upper Caves | Core integrity fell below 50% 7063 | -5/Upper Caves | Lost 4 parts (1n3u) 7142 | -5/Upper Caves | Discovered new exit (range 7) 7151 | -5/Upper Caves | Entered another Upper Caves area 7193 | -5/Upper Caves | Discovered new exit (range 12) 7202 | -5/Upper Caves | Entered Factory 7202 | -4/Factory | Evolved 2 slots: Utility x2 7472 | -4/Factory | Discovered new exit (range 7) 7476 | -4/Factory | Entered Upper Caves 7479 | -4/Upper Caves | Learned Research emergency access door positions 7480 | -4/Upper Caves | Spotted B-86 Titan 7700 | -4/Upper Caves | Learned location of Armory (-3) 7790 | -4/Upper Caves | Discovered new exit (range 16) 7799 | -4/Upper Caves | Entered another Upper Caves area 7824 | -4/Upper Caves | Discovered new exit (range 15) 8016 | -4/Upper Caves | Spotted B-86 Titan 8082 | -4/Upper Caves | Encountered a Warlord checkpoint 8089 | -4/Upper Caves | Learned Research stockpile data 8106 | -4/Upper Caves | Attracted the attention of an 0b10 checkpoint 8128 | -4/Upper Caves | Discovered new exit (range 14) 8135 | -4/Upper Caves | Entered Zhirov 8135 | -4/Zhirov | Discovered new exit (range 3) 8146 | -4/Zhirov | Met Zhirov 8164 | -4/Zhirov | Found Alien Artifact 8164 | -4/Zhirov | Identified Integrated Dissipator 8164 | -4/Zhirov | Installed Integrated Dissipator, increased core heat dissipation (+2%) 8175 | -4/Zhirov | Found Alien Artifact 8308 | -4/Zhirov | Learned location of Quarantine (-2) 8308 | -4/Zhirov | Learned location of Testing (-3) 8308 | -4/Zhirov | Learned location of Command (-1) 8311 | -4/Zhirov | Zhirov requested help retrieving the SGEMP Prototype 8328 | -4/Zhirov | Entered Proximity Caves 8439 | -3/Proximity Caves | Lost 3 parts (1p2n) 8514 | -3/Proximity Caves | Discovered new exit (range 7) 8517 | -3/Proximity Caves | Entered Research 8517 | -3/Research | Evolved 2 slots: Utility x2 8639 | -3/Research | Identified exit to Research 8812 | -3/Research | Entered another Research area 8812 | -2/Research | Evolved 2 slots: Utility x2 8978 | -2/Research | Discovered new exit (range 17) 8994 | -2/Research | Entered Access 8994 | -1/Access | Evolved 2 slots: Propulsion x1, Utility x1 9233 | -1/Access | Build established: Scout 9593 | -1/Access | Lost 3 parts (1n2u) 9806 | -1/Access | Spotted B-99 Colossus 9807 | -1/Access | Spotted B-99 Colossus 9838 | -1/Access | Core integrity fell below 50% 9838 | -1/Access | System corruption reached 10% 9845 | -1/Access | Core integrity fell below 20% 9850 | -1/Access | Identified Transdimensional Reconstructor 9850 | -1/Access | Warped through subspace 9880 | -1/Access | Lost 25 parts (4p6n11u4w) 9892 | -1/Access | Destroyed by S-43 Plague with Heavy Machine Gun Last Messages --------------- 09849_ Exp. Optical Array destroyed. 09849_ Penetrated by Slug. 09849_ Lrg. Storage Unit destroyed. 09850_ P-80 Master resets P-80 Master, system corruption cleaned. 09850_ Identified Transdimensional Reconstructor. 09850_ Warped through subspace. 09858_ System corrupted: Energy discharge (-21). 09860_ K-01 Serf cleans the Wave Collapse Detector. 09861_ Acquired 15 matter. 09865_ K-01 Serf cleans the Wave Collapse Detector. 09871_ Acquired Enh. Nova Cannon. 09874_ GH21AVJ49SU&%5ADORRDVXWBPLR 09879_ W-44 Eye sends out distress signal. 09880_ Connecting with Terminal... 09880_ Current location identified: Access 09882_ Slammed into O-32 Director. 09886_ Slammed into S-43 Plague. 09886_ Destabilizing: System interference. 09886_ Adv. Targeting Computer temporarily disabled. 09886_ Adv. Terrain Scan Processor temporarily disabled. Map ----- +----------------------------------------------------+ | ##?###???????????????????????????????????????????? | | #?#?#????????????????????????????????????????????? | | #????????????????????????????????????????????????? | | ##???????????????????????????????????????????????? | | ############+#???????????????????????????????????? | | +??????????????????????????????????? | | #??????????????????????????????????? | | #??????????????????????????????????? | | """"" +??????????????????????????????????? | | """"""" #??????????????????????????????????? | | """"""" #??????????????????????????????????? | | """"" ! #??????????????????????????????????? | | #??????????????????????????????????? | | #??????????????????????????????????? | | #??????????????????????????????????? | | #?????????###??????????????????????? | | ###+##########?????????# ??????????????????????? | | % ######?????????# ???????????????????????? | | # #?????????# ???????????????????????? | | " # #?????????# ???????????????????????? | | """ # ######????# #???????????????????????? | | """ # + #????# #???????????????????????? | | " # #% #???## ##??????????????????????? | | ###### ##### #??????????????????????? | | + sssss +??????????????????????? | | ######%########s @#??????????????????????? | | ###+#####????# #??????##+##??????????????????????? | | #?# #??????### ###???? #??????????????????????? | | # #??????# #?? #??????????????????????? | | # ######## "" ## ! #??????????????????????? | | + T" ## #??????????????????????? | | # ######## ## #??????????????????????? | | # #??????# ## #??????????????????????? | | ?# #??????## ### #??????????????????????? | | ###+###?????# #?# #??????????????????????? | | #?????# #?# #??????????????????????? | | #?????# #?# #??????????????????????? | | #?????# #?# #??????????????????????? | | #?????? ?#########??????????????????????? | | #######?????? #???????????????????????????????? | | ???? ???????? #???????????????????????????????? | | ??#??? ??????? #???????????????????????????????? | | ##???????????? #???????????????????????????????? | | ?##? ?????????###????????????????????????????????? | | ???#?????????????????????????????????????????????? | | ##???????????????????????????????????????????????? | | ??? ?????????????????????????????????????????????? | | ????????????????????????????????????????????????? | | ? ? ????????????????????????????????????????????? | | "? ?? ???????????????????????????????????????????? | +----------------------------------------------------+ Best States ------------- Heat Dissipation 110 Coolant Potential 100 Energy Generation 49 Energy Capacity 1310 Matter Stores 551 Matter Capacity 600 Sight Range 23 Robot Scan Range 13 Terrain Scan Range 18 Terrain Scan Density 410 Jamming Range 8 Base Temperature (-) 200 Corruption Prevention 20 Armor Coverage 450 Resistance: TH 25 Resistance: EM 25 Utility Shielding 66 Thermal Conversion 60 Phase Shifting 10 Evasion (%) 70 Targeting Accuracy 14 Melee Accuracy 8 Target Analysis 5 Core Analysis 8 Armor Integrity Analysis 66 Energy Filtering 30 Particle Charging 15 Offensive Hacking 14 Defensive Hacking 10 Item Schematics ----------------- Lrg. Storage Unit | -10/Materials | Hacked EM Pulse Cannon | -9/Recycling | Hacked Adv. Hacking Suite | -6/Factory | Hacked Assault Drone Bay | -4/Zhirov | Free Exp. Heat Sink | -4/Zhirov | Free Exp. Optical Array | -4/Zhirov | Free Imp. Arc Thrower | -4/Zhirov | Free Robot Schematics ------------------ None Fabricated ------------ Enh. Gamma Bomb Array | x1 | -5/Factory | Preloaded Alien Tech Used ----------------- Integrated Dissipator Transdimensional Reconstructor Achievements -------------- None Challenges ------------ None Game ------ Seed AerolevGodSpear Manual? 0 Play Time 01:51:06 Cumulative 82.6 hours Start 2020.04.10 @ 21:13:41 End 2020.04.10 @ 23:19:17 Sessions 3 Manual Loads 0 Difficulty Rogue Special Mode None Game No. 76 Rogue 76 Adventurer 0 Explorer 0 Win Type - Total 9 Types 9/0/0/0/0/0/0 Lore% 69 Gallery% 69 Achievement% 54 Wizard Run 0 Options --------- ASCII 0 Keyboard 0 Movement Vi Keybinds 0 Fullscreen 2 Font 18/SmallcapsGlow Map View 76x50 Tactical HUD 1 Map Filters NONE Filters NONE Steam 0 RUN: 52222166-4b8e-4fae-8e56-879aed889712